Departmental family,Entity,Date Paid,Expense type,Expense Area,Supplier,Transaction Number,Amount, Description , Supplier Type , Expenditure Type ,
UK Statistics Authority,Office for National Statistics,03-Apr-17,Fast Stream Recruitment,Portfolio Design,HMRC,23189," 32,491.24 ", Fast Stream Project Delivery , Large , Programme ,
UK Statistics Authority,Office for National Statistics,03-Apr-17,Fast Stream Recruitment,Portfolio Design,HMRC,23189," 32,491.00 ", Fast Stream Project Delivery , Large , Programme ,
UK Statistics Authority,Office for National Statistics,03-Apr-17,Permanent UK Staff - Basic Salary,Data Collection,HMRC,23189," 2,149.19 ", Fast Stream Project Delivery , Large , Programme ,
UK Statistics Authority,Office for National Statistics,03-Apr-17,Permanent UK Staff - Basic Salary,Data Collection,HMRC,23189," 1,494.08 ", Fast Stream Project Delivery , Large , Programme ,
UK Statistics Authority,Office for National Statistics,03-Apr-17,Permanent UK Staff - Employer's Pension Costs,Data Collection,HMRC,23189, 429.83 , Fast Stream Project Delivery , Large , Programme ,
UK Statistics Authority,Office for National Statistics,03-Apr-17,Permanent UK Staff - Employer's Pension Costs,Data Collection,HMRC,23189, 298.82 , Fast Stream Project Delivery , Large , Programme ,
UK Statistics Authority,Office for National Statistics,03-Apr-17,Permanent UK Staff - Employer's Social Security Costs,Data Collection,HMRC,23189, 167.19 , Fast Stream Project Delivery , Large , Programme ,
UK Statistics Authority,Office for National Statistics,03-Apr-17,Permanent UK Staff - Employer's Social Security Costs,Data Collection,HMRC,23189, 116.23 , Fast Stream Project Delivery , Large , Programme ,
UK Statistics Authority,Office for National Statistics,03-Apr-17,EU Income,Social and Analysis,Department for Work and Pensions,23191," 57,020.92 ", Statistical Services , Large , Programme ,
UK Statistics Authority,Office for National Statistics,03-Apr-17,Surveys,Census,Department for Work and Pensions,23191," 17,302.62 ", Statistical Services , Large , Programme ,
UK Statistics Authority,Office for National Statistics,03-Apr-17,Surveys,Data Collection,Department for Work and Pensions,23191," 437,194.39 ", Statistical Services , Large , Programme ,
UK Statistics Authority,Office for National Statistics,03-Apr-17,Training and Development - Seminar & Conference Fees,Digital Services Technology and Methodology,Department for Work and Pensions,23191, 940.34 , Statistical Services , Large , Programme ,
UK Statistics Authority,Office for National Statistics,03-Apr-17,Surveys,National Accounts and Economic Statistics,TNS UK Ltd,23192," 185,464.80 ", Statistical Services , Large , Programme ,
UK Statistics Authority,Office for National Statistics,03-Apr-17,Contractors,Digital Services Technology and Methodology,Indigoblue,23193," 10,260.00 ", Information Management Services , Large , Programme ,
UK Statistics Authority,Office for National Statistics,03-Apr-17,ICT Outsourcing & Maint./Support,National Accounts and Economic Statistics,Indigoblue,23193," 19,380.00 ", Information Management Services , Large , Programme ,
UK Statistics Authority,Office for National Statistics,03-Apr-17,Contractors,Digital Services Technology and Methodology,Methods Digital Ltd,23200," 51,750.00 ", Information Management Services , Large , Programme ,
UK Statistics Authority,Office for National Statistics,03-Apr-17,Contractors,Digital Services Technology and Methodology,Methods Digital Ltd,23200," 18,000.00 ", Information Management Services , Large , Programme ,
UK Statistics Authority,Office for National Statistics,03-Apr-17,ICT Outsourcing & Maint./Support,Digital Services Technology and Methodology,Methods Digital Ltd,23200," 44,550.00 ", Information Management Services , Large , Programme ,
UK Statistics Authority,Office for National Statistics,03-Apr-17,Consultancy,Digital Services Technology and Methodology,LA International,23202," 7,094.88 ", Information Management Services , SME , Programme ,
UK Statistics Authority,Office for National Statistics,03-Apr-17,Contractors,Business Services and Development,LA International,23202," 11,760.96 ", Information Management Services , SME , Programme ,
UK Statistics Authority,Office for National Statistics,03-Apr-17,Contractors,Digital Services Technology and Methodology,LA International,23202," 14,590.44 ", Information Management Services , SME , Programme ,
UK Statistics Authority,Office for National Statistics,03-Apr-17,Short-Term Contract & Agency Staff - Full Cost,Census,LA International,23202," 10,226.88 ", Information Management Services , SME , Programme ,
UK Statistics Authority,Office for National Statistics,03-Apr-17,Consultancy,Census,Deloitte,23208," 99,526.01 ", Information Management Services , SME , Programme ,
UK Statistics Authority,Office for National Statistics,03-Apr-17,Consultancy,Census,Deloitte,23208," 31,041.84 ", Information Management Services , SME , Programme ,
UK Statistics Authority,Office for National Statistics,03-Apr-17,Consultancy,Comms Stakeholder Division,Deloitte,23208," 47,396.95 ", Information Management Services , SME , Programme ,
UK Statistics Authority,Office for National Statistics,03-Apr-17,ICT Outsourcing & Maint./Support,Digital Services Technology and Methodology,QA Ltd,23211," 59,962.50 ", Information Management Services , Large , Programme ,
UK Statistics Authority,Office for National Statistics,03-Apr-17,Non IT Contractual Payments,Census,Pinsent Masons,23212," 55,568.40 ", Legal Services , Large , Programme ,
UK Statistics Authority,Office for National Statistics,03-Apr-17,Capitalised Agency Staff Costs,Census,Ernst & Young Llp,23213," 16,745.75 ", Information Management Services , Large , Programme ,
UK Statistics Authority,Office for National Statistics,03-Apr-17,Consultancy,Census,Ernst & Young Llp,23213," 27,232.86 ", Information Management Services , Large , Programme ,
UK Statistics Authority,Office for National Statistics,03-Apr-17,Consultancy,Census,Ernst & Young Llp,23213," 7,105.58 ", Information Management Services , Large , Programme ,
UK Statistics Authority,Office for National Statistics,03-Apr-17,Consultancy,Census,Ernst & Young Llp,23213," 46,338.83 ", Information Management Services , Large , Programme ,
UK Statistics Authority,Office for National Statistics,03-Apr-17,Consultancy,People Solutions,Ernst & Young Llp,23213," 86,913.07 ", Information Management Services , Large , Programme ,
UK Statistics Authority,Office for National Statistics,03-Apr-17,ICT Outsourcing & Maint./Support,Census,Ernst & Young Llp,23213," 35,994.95 ", Information Management Services , Large , Programme ,
UK Statistics Authority,Office for National Statistics,03-Apr-17,Non IT Contractual Payments,Census,Ernst & Young Llp,23213," 25,647.96 ", Information Management Services , Large , Programme ,
UK Statistics Authority,Office for National Statistics,03-Apr-17,ICT Outsourcing & Maint./Support,Digital Services Technology and Methodology,Fujitsu Services Ltd,23216," 412,421.16 ", Information Management Services , Large , Programme ,
UK Statistics Authority,Office for National Statistics,03-Apr-17,Childcare Services,Corporate Support,Computershare Voucher Services,23220," 36,263.57 ", Childcare Vouchers , Large , Programme ,
UK Statistics Authority,Office for National Statistics,03-Apr-17,Childcare Services,Finance,Computershare Voucher Services,23220," 2,828.56 ", Childcare Vouchers , Large , Programme ,
UK Statistics Authority,Office for National Statistics,03-Apr-17,Capitalised Agency Staff Costs,Digital Services Technology and Methodology,Parity Resources Limited,23221," 14,400.00 ", Information Management Services , Large , Programme ,
UK Statistics Authority,Office for National Statistics,03-Apr-17,Consultancy,People Solutions,Parity Resources Limited,23221," 10,744.20 ", Information Management Services , Large , Programme ,
UK Statistics Authority,Office for National Statistics,03-Apr-17,Contractors,Business Services and Development,Parity Resources Limited,23221," 2,882.88 ", Information Management Services , Large , Programme ,
UK Statistics Authority,Office for National Statistics,03-Apr-17,Contractors,Business Services and Development,Parity Resources Limited,23221," 9,639.00 ", Information Management Services , Large , Programme ,
UK Statistics Authority,Office for National Statistics,03-Apr-17,Contractors,Business Services and Development,Parity Resources Limited,23221," 22,239.78 ", Information Management Services , Large , Programme ,
UK Statistics Authority,Office for National Statistics,03-Apr-17,Contractors,Data Collection,Parity Resources Limited,23221," 14,605.97 ", Information Management Services , Large , Programme ,
UK Statistics Authority,Office for National Statistics,03-Apr-17,Contractors,Digital Services Technology and Methodology,Parity Resources Limited,23221," 3,695.34 ", Information Management Services , Large , Programme ,
UK Statistics Authority,Office for National Statistics,03-Apr-17,Contractors,Digital Services Technology and Methodology,Parity Resources Limited,23221," 90,346.33 ", Information Management Services , Large , Programme ,
UK Statistics Authority,Office for National Statistics,03-Apr-17,Contractors,Finance,Parity Resources Limited,23221," 8,442.00 ", Information Management Services , Large , Programme ,
UK Statistics Authority,Office for National Statistics,03-Apr-17,Contractors,Finance,Parity Resources Limited,23221," 2,110.50 ", Information Management Services , Large , Programme ,
UK Statistics Authority,Office for National Statistics,03-Apr-17,Contractors,National Accounts and Economic Statistics,Parity Resources Limited,23221," 18,746.88 ", Information Management Services , Large , Programme ,
UK Statistics Authority,Office for National Statistics,03-Apr-17,Contractors,National Accounts and Economic Statistics,Parity Resources Limited,23221," 9,721.01 ", Information Management Services , Large , Programme ,
UK Statistics Authority,Office for National Statistics,03-Apr-17,Contractors,Organisational Development,Parity Resources Limited,23221," 6,942.82 ", Information Management Services , Large , Programme ,
UK Statistics Authority,Office for National Statistics,03-Apr-17,Contractors,Organisational Development,Parity Resources Limited,23221," 24,798.37 ", Information Management Services , Large , Programme ,
UK Statistics Authority,Office for National Statistics,03-Apr-17,Contractors,Portfolio Design,Parity Resources Limited,23221," 12,471.04 ", Information Management Services , Large , Programme ,
UK Statistics Authority,Office for National Statistics,03-Apr-17,Contractors,Portfolio Design,Parity Resources Limited,23221," 3,837.22 ", Information Management Services , Large , Programme ,
UK Statistics Authority,Office for National Statistics,03-Apr-17,Short-Term Contract & Agency Staff - Full Cost,Business Services and Development,Parity Resources Limited,23221," 2,455.49 ", Information Management Services , Large , Programme ,
UK Statistics Authority,Office for National Statistics,03-Apr-17,Short-Term Contract & Agency Staff - Full Cost,Business Services and Development,Parity Resources Limited,23221," 2,364.23 ", Information Management Services , Large , Programme ,
UK Statistics Authority,Office for National Statistics,03-Apr-17,Short-Term Contract & Agency Staff - Full Cost,Census,Parity Resources Limited,23221," 1,675.08 ", Information Management Services , Large , Programme ,
UK Statistics Authority,Office for National Statistics,03-Apr-17,Short-Term Contract & Agency Staff - Full Cost,Census,Parity Resources Limited,23221," 7,444.79 ", Information Management Services , Large , Programme ,
UK Statistics Authority,Office for National Statistics,03-Apr-17,Short-Term Contract & Agency Staff - Full Cost,Census,Parity Resources Limited,23221," 1,721.66 ", Information Management Services , Large , Programme ,
UK Statistics Authority,Office for National Statistics,03-Apr-17,Short-Term Contract & Agency Staff - Full Cost,Data Collection,Parity Resources Limited,23221," 3,636.50 ", Information Management Services , Large , Programme ,
UK Statistics Authority,Office for National Statistics,03-Apr-17,Short-Term Contract & Agency Staff - Full Cost,Data Collection,Parity Resources Limited,23221," 4,679.65 ", Information Management Services , Large , Programme ,
UK Statistics Authority,Office for National Statistics,03-Apr-17,Short-Term Contract & Agency Staff - Full Cost,Data Collection,Parity Resources Limited,23221," 2,697.77 ", Information Management Services , Large , Programme ,
UK Statistics Authority,Office for National Statistics,03-Apr-17,Short-Term Contract & Agency Staff - Full Cost,Digital Services Technology and Methodology,Parity Resources Limited,23221," 3,805.97 ", Information Management Services , Large , Programme ,
UK Statistics Authority,Office for National Statistics,03-Apr-17,Short-Term Contract & Agency Staff - Full Cost,Portfolio Design,Parity Resources Limited,23221," 2,784.77 ", Information Management Services , Large , Programme ,
UK Statistics Authority,Office for National Statistics,03-Apr-17,Short-Term Contract & Agency Staff - Full Cost,Social and Analysis,Parity Resources Limited,23221," 3,805.97 ", Information Management Services , Large , Programme ,
UK Statistics Authority,Office for National Statistics,03-Apr-17,Travel & Subsistence,Data Collection,Parity Resources Limited,23221, 4.56 , Information Management Services , Large , Programme ,
UK Statistics Authority,Office for National Statistics,03-Apr-17,ICT Outsourcing & Maint./Support,Central Support,Valtech Ltd,23229," 29,520.00 ", Information Management Services , Large , Programme ,
UK Statistics Authority,Office for National Statistics,03-Apr-17,ICT Outsourcing & Maint./Support,Digital Services Technology and Methodology,Valtech Ltd,23229," 67,680.00 ", Information Management Services , Large , Programme ,
UK Statistics Authority,Office for National Statistics,03-Apr-17,PC Purchases > 2K per Item,Digital Services Technology and Methodology,Galtec Solutions Ltd,23235," 47,083.44 ", Information Management Services , SME , Programme ,
UK Statistics Authority,Office for National Statistics,03-Apr-17,Non IT Contractual Payments,People Solutions,Fluxx Limited,23238," 60,000.00 ", Information Management Services , SME , Programme ,
UK Statistics Authority,Office for National Statistics,03-Apr-17,Consultancy,Portfolio Design,Mozaic Services Ltd,23239," 77,702.40 ", Information Management Services , SME , Programme ,
UK Statistics Authority,Office for National Statistics,03-Apr-17,Contractors,Census,Department For Education,23241," 29,059.99 ", Information Management Services , Large , Programme ,
UK Statistics Authority,Office for National Statistics,03-Apr-17,ICT Outsourcing & Maint./Support,Central Support,Mango Solutions,23242," 26,727.48 ", Information Management Services , SME , Programme ,
UK Statistics Authority,Office for National Statistics,03-Apr-17,ICT Outsourcing & Maint./Support,Data Science Campus,Mango Solutions,23242," 11,531.52 ", Information Management Services , SME , Programme ,
UK Statistics Authority,Office for National Statistics,03-Apr-17,Consultancy,Digital Services Technology and Methodology,Mastek,23244," 175,830.00 ", Information Management Services , Large , Programme ,
UK Statistics Authority,Office for National Statistics,03-Apr-17,Non IT Contractual Payments,Data Collection,The Behavioural Insights Team,23245," 63,290.40 ", Information Management Services , SME , Programme ,
UK Statistics Authority,Office for National Statistics,03-Apr-17,Surveys,Social and Analysis,London School of Hygiene & Tropical Medicine,23249," 96,542.00 ", Statistical Services , Large , Programme ,
UK Statistics Authority,Office for National Statistics,03-Apr-17,Contractors,Digital Services Technology and Methodology,E Synergy Solutions,23250," 153,009.00 ", Information Management Services , SME , Programme ,
UK Statistics Authority,Office for National Statistics,03-Apr-17,ICT Outsourcing & Maint./Support,Digital Services Technology and Methodology,E Synergy Solutions,23250," 11,280.00 ", Information Management Services , SME , Programme ,
UK Statistics Authority,Office for National Statistics,03-Apr-17,ICT Outsourcing & Maint./Support,Digital Services Technology and Methodology,Crown Hosting Data Centres Limited,23253," 53,480.70 ", Data Centre Hosting , SME , Programme ,
UK Statistics Authority,Office for National Statistics,03-Apr-17,ICT Outsourcing & Maint./Support,Digital Services Technology and Methodology,Crown Hosting Data Centres Limited,23253," 21,382.38 ", Information Management Services , SME , Programme ,
UK Statistics Authority,Office for National Statistics,03-Apr-17,FM Contract Payments,Corporate Support,Vinci Construction UK Limited,23256," 79,295.59 ", Facilities Management , Large , Programme ,
UK Statistics Authority,Office for National Statistics,03-Apr-17,Contractors,Digital Services Technology and Methodology,Empiric Solutions Limited,23258," 14,880.00 ", Information Management Services , Large , Programme ,
UK Statistics Authority,Office for National Statistics,03-Apr-17,Contractors,Digital Services Technology and Methodology,Empiric Solutions Limited,23258," 13,440.00 ", Information Management Services , Large , Programme ,
UK Statistics Authority,Office for National Statistics,03-Apr-17,Surveys,Organisational Development,Cabinet Office,23263," 28,246.79 ", Pension Administration Charge , Large , Programme ,
UK Statistics Authority,Office for National Statistics,03-Apr-17,ICT Outsourcing & Maint./Support,Digital Services Technology and Methodology,Trustmarque Solutions,23267," 531,359.94 ", Information Management Services , Large , Programme ,
UK Statistics Authority,Office for National Statistics,03-Apr-17,Other ICT Costs,Digital Services Technology and Methodology,Trustmarque Solutions,23267," 93,600.00 ", Information Management Services , Large , Programme ,
UK Statistics Authority,Office for National Statistics,03-Apr-17,Consultancy,Office of the Chief Economic Adviser,University of Southampton,23269," 1,983.00 ", Statistical Services , SME , Programme ,
UK Statistics Authority,Office for National Statistics,03-Apr-17,Surveys,Digital Services Technology and Methodology,University of Southampton,23269," 34,563.69 ", Statistical Services , SME , Programme ,
UK Statistics Authority,Office for National Statistics,03-Apr-17,Training & Development,Digital Services Technology and Methodology,University of Southampton,23269, 700.00 , Statistical Services , SME , Programme ,
UK Statistics Authority,Office for National Statistics,03-Apr-17,Training & Development - Seminar & Conference Fees,Digital Services Technology and Methodology,University of Southampton,23269, 700.00 , Statistical Services , SME , Programme ,
UK Statistics Authority,Office for National Statistics,03-Apr-17,Training & Development - Seminar & Conference Fees,Digital Services Technology and Methodology,University of Southampton,23269," 2,800.00 ", Statistical Services , SME , Programme ,
UK Statistics Authority,Office for National Statistics,03-Apr-17,Training & Development - Seminar & Conference Fees,Social and Analysis,University of Southampton,23269, 700.00 , Statistical Services , SME , Programme ,
UK Statistics Authority,Office for National Statistics,03-Apr-17,Telecoms,Digital Services Technology and Methodology,BT Global Services,23272," 31,884.98 ", Information Management Services , Large , Programme ,
UK Statistics Authority,Office for National Statistics,03-Apr-17,Contractors,Business Services and Development,Methods Professional Services,23275," 13,688.22 ", Information Management Services , SME , Programme ,
UK Statistics Authority,Office for National Statistics,03-Apr-17,Contractors,Digital Services Technology and Methodology,Methods Professional Services,23275," 6,998.26 ", Information Management Services , SME , Programme ,
UK Statistics Authority,Office for National Statistics,03-Apr-17,Contractors,Portfolio Design,Methods Professional Services,23275," 7,884.00 ", Information Management Services , SME , Programme ,
UK Statistics Authority,Office for National Statistics,03-Apr-17,Travel & Subsistence,Corporate Support,Redfern Travel,23279," 32,695.43 ", Travel and Accommodation Booking Service , SME , Programme ,
UK Statistics Authority,Office for National Statistics,03-Apr-17,Accommodation & Building Management,Data Collection,Heathrow Airport,23280," 27,177.56 ", Annual Rental Charge , Large , Programme ,
UK Statistics Authority,Office for National Statistics,03-Apr-17,ICT Outsourcing & Maint./Support,Digital Services Technology and Methodology,CDW Limited,23282," 92,400.00 ", Information Management Services , Large , Programme ,
UK Statistics Authority,Office for National Statistics,03-Apr-17,Other ICT Costs,Digital Services Technology and Methodology,CDW Limited,23282," 32,296.92 ", Information Management Services , Large , Programme ,
UK Statistics Authority,Office for National Statistics,04-Apr-17,Other ICT Costs,Digital Services Technology and Methodology,Oracle Corporation UK Ltd,23288," 214,254.91 ", Information Management Services , Large , Programme ,
UK Statistics Authority,Office for National Statistics,04-Apr-17,Other ICT Costs - Software,Digital Services Technology and Methodology,Oracle Corporation UK Ltd,23288," 440,321.68 ", Information Management Services , Large , Programme ,
UK Statistics Authority,Office for National Statistics,04-Apr-17,Contractors,Digital Services Technology and Methodology,E Synergy Solutions,23290," 27,966.00 ", Information Management Services , SME , Programme ,
UK Statistics Authority,Office for National Statistics,04-Apr-17,ICT Outsourcing & Maint./Support,Digital Services Technology and Methodology,E Synergy Solutions,23290," 7,332.00 ", Information Management Services , SME , Programme ,
UK Statistics Authority,Office for National Statistics,04-Apr-17,Consultancy,Central Support,Concept Information Technology Ltd T/A Concept Resourcing,23297," 10,920.00 ", Information Management Services , Large , Programme ,
UK Statistics Authority,Office for National Statistics,04-Apr-17,Short-Term Contract & Agency Staff - Full Cost,Digital Services Technology and Methodology,Concept Information Technology Ltd T/A Concept Resourcing,23297," 11,496.32 ", Information Management Services , Large , Programme ,
UK Statistics Authority,Office for National Statistics,04-Apr-17,Short-Term Contract & Agency Staff - Full Cost,Digital Services Technology and Methodology,Concept Information Technology Ltd T/A Concept Resourcing,23297," 2,880.00 ", Information Management Services , Large , Programme ,
UK Statistics Authority,Office for National Statistics,04-Apr-17,Surveys,National Accounts and Economic Statistics,University of Durham,23306," 476,030.40 ", Statistical Services , Large , Programme ,
UK Statistics Authority,Office for National Statistics,04-Apr-17,ICT Outsourcing & Maint./Support,Digital Services Technology and Methodology,BT Global Services,23308," 195,322.98 ", Information Management Services , Large , Programme ,
UK Statistics Authority,Office for National Statistics,04-Apr-17,ICT Outsourcing & Maint./Support,Data Collection,Equiniti Limited,23316," 21,844.56 ", Information Management Services , Large , Programme ,
UK Statistics Authority,Office for National Statistics,04-Apr-17,ICT Outsourcing & Maint./Support,Social and Analysis,Equiniti Limited,23316," 25,368.24 ", Information Management Services , Large , Programme ,
UK Statistics Authority,Office for National Statistics,04-Apr-17,ICT Outsourcing & Maint./Support,Digital Services Technology and Methodology,Software Box Ltd,23318," 59,442.72 ", IT Hardware & Peripherals , SME , Programme ,
UK Statistics Authority,Office for National Statistics,04-Apr-17,Seconded Staff,Census,HMRC,23322," 27,974.10 ", Information Management Services , Large , Programme ,
UK Statistics Authority,Office for National Statistics,04-Apr-17,Surveys,Census,Ipsos MORI,23324," 119,623.20 ", Statistical Services , Large , Programme ,
UK Statistics Authority,Office for National Statistics,04-Apr-17,Surveys,National Accounts and Economic Statistics,TNS UK Ltd,23326," 4,989.60 ", Statistical Services , Large , Programme ,
UK Statistics Authority,Office for National Statistics,04-Apr-17,Surveys,National Accounts and Economic Statistics,TNS UK Ltd,23326," 185,464.80 ", Statistical Services , Large , Programme ,
UK Statistics Authority,Office for National Statistics,04-Apr-17,ICT Outsourcing & Maint./Support,Digital Services Technology and Methodology,Somerford Associates,23331," 80,267.75 ", Information Management Services , Large , Programme ,
UK Statistics Authority,Office for National Statistics,04-Apr-17,ICT Outsourcing & Maint./Support,Office of the Chief Economic Adviser,Korn Ferry Hay Group,23334," 40,945.20 ", Training  , SME , Programme ,
UK Statistics Authority,Office for National Statistics,04-Apr-17,Training & Development - Seminar & Conference Fees,Data Collection,Korn Ferry Hay Group,23334, 684.00 , Training  , SME , Programme ,
UK Statistics Authority,Office for National Statistics,04-Apr-17,Contractors,Digital Services Technology and Methodology,Certes Computing Ltd,23335," 23,079.00 ", Information Management Services , SME , Programme ,
UK Statistics Authority,Office for National Statistics,04-Apr-17,Contractors,National Accounts and Economic Statistics,Certes Computing Ltd,23335," 14,364.00 ", Information Management Services , SME , Programme ,
UK Statistics Authority,Office for National Statistics,04-Apr-17,Consultancy,Census,Ernst & Young Llp,23343," 8,556.00 ", Information Management Services , Large , Programme ,
UK Statistics Authority,Office for National Statistics,04-Apr-17,Consultancy,Census,Ernst & Young Llp,23343," 1,956.00 ", Information Management Services , Large , Programme ,
UK Statistics Authority,Office for National Statistics,04-Apr-17,Contractors,Census,Ernst & Young Llp,23343," 13,416.00 ", Information Management Services , Large , Programme ,
UK Statistics Authority,Office for National Statistics,04-Apr-17,ICT Outsourcing & Maint./Support,Census,Ernst & Young Llp,23343," 12,480.00 ", Information Management Services , Large , Programme ,
UK Statistics Authority,Office for National Statistics,04-Apr-17,Other ICT Costs,Digital Services Technology and Methodology,Computacenter (UK) Limited,23349," 147,780.00 ", Information Management Services , Large , Programme ,
UK Statistics Authority,Office for National Statistics,04-Apr-17,Other ICT Costs - Software,Digital Services Technology and Methodology,Computacenter (UK) Limited,23349," 22,402.56 ", Information Management Services , Large , Programme ,
UK Statistics Authority,Office for National Statistics,04-Apr-17,Surveys,Office of the Chief Economic Adviser,London Economics,23361," 48,000.00 ", Statistical Services , SME , Programme ,
UK Statistics Authority,Office for National Statistics,04-Apr-17,ICT Outsourcing & Maint./Support,Census,JISC,23365," 36,000.00 ", Information Management Services , SME , Programme ,
UK Statistics Authority,Office for National Statistics,04-Apr-17,ICT Outsourcing & Maint./Support,Digital Services Technology and Methodology,Comparex UK Ltd,23366," 7,982.46 ", Information Management Services , Large , Programme ,
UK Statistics Authority,Office for National Statistics,04-Apr-17,Software Pool 4 Year,Digital Services Technology and Methodology,Comparex UK Ltd,23366," 28,526.89 ", Information Management Services , Large , Programme ,
UK Statistics Authority,Office for National Statistics,04-Apr-17,Surveys,Census,BMG Research Ltd,23370," 56,400.00 ", Statistical Services , SME , Programme ,
UK Statistics Authority,Office for National Statistics,05-Apr-17,ICT Outsourcing & Maint./Support,Digital Services Technology and Methodology,Certus Solutions Consulting Services Ltd,23920," 53,280.00 ", Information Management Services , SME , Programme ,
UK Statistics Authority,Office for National Statistics,05-Apr-17,ICT Outsourcing & Maint./Support,Digital Services Technology and Methodology,SCC,23927, 736.20 , Information Management Services , Large , Programme ,
UK Statistics Authority,Office for National Statistics,05-Apr-17,Software Pool 4 Year,Digital Services Technology and Methodology,SCC,23927," 36,779.40 ", Information Management Services , Large , Programme ,
UK Statistics Authority,Office for National Statistics,05-Apr-17,Telecoms,Data Collection,BT Global Services,23928," 5,088.12 ", Information Management Services , Large , Programme ,
UK Statistics Authority,Office for National Statistics,05-Apr-17,Telecoms,Digital Services Technology and Methodology,BT Global Services,23928," 21,120.00 ", Information Management Services , Large , Programme ,
UK Statistics Authority,Office for National Statistics,05-Apr-17,Telecoms,Digital Services Technology and Methodology,BT Global Services,23928," 15,372.00 ", Information Management Services , Large , Programme ,
UK Statistics Authority,Office for National Statistics,05-Apr-17,Travel & Subsistence,Corporate Support,Redfern Travel,23931," 39,810.42 ", Travel and Accommodation Booking Service , SME , Programme ,
UK Statistics Authority,Office for National Statistics,05-Apr-17,Furniture Costing > 2K,Property Newport,The Senator Group,23937," 44,637.88 ", Smart Working Furniture , Large , Programme ,
UK Statistics Authority,Office for National Statistics,05-Apr-17,Rent Payable,Property Titchfield,Eaton Aerospace Limited,23939," 25,624.80 ", Rent  , Large , Programme ,
UK Statistics Authority,Office for National Statistics,05-Apr-17,ICT Outsourcing & Maint./Support,Digital Services Technology and Methodology,Computacenter (UK) Limited,23942," 53,378.40 ", Information Management Services , Large , Programme ,
UK Statistics Authority,Office for National Statistics,05-Apr-17,Consultancy,People Solutions,Parity Resources Limited,23943," 12,893.04 ", Information Management Services , Large , Programme ,
UK Statistics Authority,Office for National Statistics,05-Apr-17,Contractors,Business Services and Development,Parity Resources Limited,23943," 1,921.92 ", Information Management Services , Large , Programme ,
UK Statistics Authority,Office for National Statistics,05-Apr-17,Contractors,Business Services and Development,Parity Resources Limited,23943," 13,526.22 ", Information Management Services , Large , Programme ,
UK Statistics Authority,Office for National Statistics,05-Apr-17,Contractors,Digital Services Technology and Methodology,Parity Resources Limited,23943," 3,594.08 ", Information Management Services , Large , Programme ,
UK Statistics Authority,Office for National Statistics,05-Apr-17,Contractors,Digital Services Technology and Methodology,Parity Resources Limited,23943," 44,198.73 ", Information Management Services , Large , Programme ,
UK Statistics Authority,Office for National Statistics,05-Apr-17,Contractors,National Accounts and Economic Statistics,Parity Resources Limited,23943," 1,087.20 ", Information Management Services , Large , Programme ,
UK Statistics Authority,Office for National Statistics,05-Apr-17,Contractors,National Accounts and Economic Statistics,Parity Resources Limited,23943," 10,744.27 ", Information Management Services , Large , Programme ,
UK Statistics Authority,Office for National Statistics,05-Apr-17,Contractors,Organisational Development,Parity Resources Limited,23943," 1,983.66 ", Information Management Services , Large , Programme ,
UK Statistics Authority,Office for National Statistics,05-Apr-17,Contractors,Organisational Development,Parity Resources Limited,23943," 28,843.50 ", Information Management Services , Large , Programme ,
UK Statistics Authority,Office for National Statistics,05-Apr-17,Short-Term Contract & Agency Staff - Full Cost,Census,Parity Resources Limited,23943," 3,643.97 ", Information Management Services , Large , Programme ,
UK Statistics Authority,Office for National Statistics,05-Apr-17,Short-Term Contract & Agency Staff - Full Cost,Census,Parity Resources Limited,23943," 1,902.98 ", Information Management Services , Large , Programme ,
UK Statistics Authority,Office for National Statistics,05-Apr-17,Short-Term Contract & Agency Staff - Full Cost,Census,Parity Resources Limited,23943, 244.61 , Information Management Services , Large , Programme ,
UK Statistics Authority,Office for National Statistics,05-Apr-17,Short-Term Contract & Agency Staff - Full Cost,Data Collection,Parity Resources Limited,23943," 1,963.91 ", Information Management Services , Large , Programme ,
UK Statistics Authority,Office for National Statistics,05-Apr-17,Short-Term Contract & Agency Staff - Full Cost,Data Collection Support Services,Parity Resources Limited,23943," 3,743.47 ", Information Management Services , Large , Programme ,
UK Statistics Authority,Office for National Statistics,05-Apr-17,Short-Term Contract & Agency Staff - Full Cost,Digital Services Technology and Methodology,Parity Resources Limited,23943," 4,757.46 ", Information Management Services , Large , Programme ,
UK Statistics Authority,Office for National Statistics,05-Apr-17,Short-Term Contract & Agency Staff - Full Cost,Press Office,Parity Resources Limited,23943," 3,748.58 ", Information Management Services , Large , Programme ,
UK Statistics Authority,Office for National Statistics,06-Apr-17,Contractors,Digital Services Technology and Methodology,Mastek,23955," 232,530.00 ", Information Management Services , Large , Programme ,
UK Statistics Authority,Office for National Statistics,06-Apr-17,Contractors,Digital Services Technology and Methodology,E Synergy Solutions,23956," 47,484.00 ", Information Management Services , SME , Programme ,
UK Statistics Authority,Office for National Statistics,06-Apr-17,ICT Outsourcing & Maint./Support,Digital Services Technology and Methodology,E Synergy Solutions,23956," 2,820.00 ", Information Management Services , SME , Programme ,
UK Statistics Authority,Office for National Statistics,06-Apr-17,Travel & Subsistence,Corporate Support,Calder World of Travel,23967," 67,062.98 ", Trainline Booking Services , SME , Programme ,
UK Statistics Authority,Office for National Statistics,06-Apr-17,Consultancy,Census,Deloitte,23972," 32,419.20 ", Information Management Services , SME , Programme ,
UK Statistics Authority,Office for National Statistics,06-Apr-17,ICT Outsourcing & Maint./Support,Digital Services Technology and Methodology,BMS (UK) Ltd,23978," 32,718.00 ", Information Management Services , Large , Programme ,
UK Statistics Authority,Office for National Statistics,07-Apr-17,Capitalised Consultancy - Non IT,Office of the Chief Economic Adviser,NIESR,23987," 88,000.00 ", Statistical Services , SME , Programme ,
UK Statistics Authority,Office for National Statistics,07-Apr-17,IT Purchases > 2K,Digital Services Technology and Methodology,The Sensible Code Company,23989," 27,864.00 ", Software , SME , Programme ,
UK Statistics Authority,Office for National Statistics,07-Apr-17,Contractors,Digital Services Technology and Methodology,Methods Digital Ltd,23990," 37,800.00 ", Information Management Services , Large , Programme ,
UK Statistics Authority,Office for National Statistics,07-Apr-17,Postage Stamps,Data Collection,Royal Mail Direct,23991," 42,560.00 ", Outgoing Postage , Large , Programme ,
UK Statistics Authority,Office for National Statistics,07-Apr-17,Contractors,Digital Services Technology and Methodology,Empiric Solutions Limited,24004," 30,114.00 ", Information Management Services , Large , Programme ,
UK Statistics Authority,Office for National Statistics,07-Apr-17,Contractors,Digital Services Technology and Methodology,Empiric Solutions Limited,24004," 15,456.00 ", Information Management Services , Large , Programme ,
UK Statistics Authority,Office for National Statistics,10-Apr-17,FM Contract Payments,Corporate Support,Vinci Construction UK Limited,24263," 316,153.09 ", Facilities Management , Large , Programme ,
UK Statistics Authority,Office for National Statistics,10-Apr-17,Postage,Data Collection,UK Mail,24272," 45,264.15 ", Outgoing Postage , Large , Programme ,
UK Statistics Authority,Office for National Statistics,10-Apr-17,Permanent UK Staff - Severance Payments,Finance,MyCSP,30000367," 151,907.22 ", Pension Administration Charge , Large , Programme ,
UK Statistics Authority,Office for National Statistics,11-Apr-17,Consultancy,Office of the Chief Economic Adviser,NERC Science of The Environment,24483," 47,789.86 ", Information Management Services , SME , Programme ,
UK Statistics Authority,Office for National Statistics,12-Apr-17,Travel & Subsistence,Corporate Support,Redfern Travel,24494," 41,890.39 ", Travel and Accommodation Booking Service , SME , Programme ,
UK Statistics Authority,Office for National Statistics,12-Apr-17,Capitalised Consultancy - Non IT,Office of the Chief Economic Adviser,NIESR,24498," 568,551.60 ", Information Management Services , SME , Programme ,
UK Statistics Authority,Office for National Statistics,12-Apr-17,Consultancy,Digital Services Technology and Methodology,LA International,24502," 10,878.82 ", Information Management Services , SME , Programme ,
UK Statistics Authority,Office for National Statistics,12-Apr-17,Contractors,Digital Services Technology and Methodology,LA International,24502," 25,852.55 ", Information Management Services , SME , Programme ,
UK Statistics Authority,Office for National Statistics,12-Apr-17,Contractors,National Accounts and Economic Statistics,LA International,24502," 14,061.96 ", Information Management Services , SME , Programme ,
UK Statistics Authority,Office for National Statistics,12-Apr-17,ICT Outsourcing & Maint./Support,Digital Services Technology and Methodology,LA International,24502, 71.28 , Information Management Services , SME , Programme ,
UK Statistics Authority,Office for National Statistics,12-Apr-17,ICT Outsourcing & Maint./Support,Digital Services Technology and Methodology,Level 3 Communications UK Limited,24504," 27,000.00 ", Managed Network Service Charges , Large , Programme ,
UK Statistics Authority,Office for National Statistics,12-Apr-17,Non IT Contractual Payments,Census,Pinsent Masons,24506," 31,260.00 ", Legal Services , Large , Programme ,
UK Statistics Authority,Office for National Statistics,12-Apr-17,Procurement Card,Corporate Support,Royal Bank of Scotland,24509," 40,560.80 ", Multiple Procurement Card Purchases , Large , Programme ,
UK Statistics Authority,Office for National Statistics,12-Apr-17,Stationery,Corporate Support,Royal Bank of Scotland,24509," 9,845.25 ", Multiple Procurement Card Purchases , Large , Programme ,
UK Statistics Authority,Office for National Statistics,12-Apr-17,PC Purchases < 2K per Item,Digital Services Technology and Methodology,Computacenter (UK) Limited,24510," 530,789.28 ", Information Management Services , Large , Programme ,
UK Statistics Authority,Office for National Statistics,12-Apr-17,Contractors,Social and Analysis,Joseph Rowntree Foundation,24513," 50,000.00 ", Statistical Services , SME , Programme ,
UK Statistics Authority,Office for National Statistics,13-Apr-17,Contractors,Digital Services Technology and Methodology,E Synergy Solutions,24828," 26,922.00 ", Information Management Services , SME , Programme ,
UK Statistics Authority,Office for National Statistics,13-Apr-17,ICT Outsourcing & Maint./Support,Business Services and Development,LinkedIn,24843," 52,311.20 ", Licenses , Large , Programme ,
UK Statistics Authority,Office for National Statistics,13-Apr-17,ICT Outsourcing & Maint./Support,Digital Services Technology and Methodology,Methods Digital Ltd,24845," 84,180.00 ", Information Management Services , Large , Programme ,
UK Statistics Authority,Office for National Statistics,13-Apr-17,Contractors,Business Services and Development,Parity Resources Limited,24851," 9,282.00 ", Information Management Services , Large , Programme ,
UK Statistics Authority,Office for National Statistics,13-Apr-17,Contractors,Digital Services Technology and Methodology,Parity Resources Limited,24851," 17,587.50 ", Information Management Services , Large , Programme ,
UK Statistics Authority,Office for National Statistics,13-Apr-17,Contractors,Portfolio Design,Parity Resources Limited,24851," 1,279.08 ", Information Management Services , Large , Programme ,
UK Statistics Authority,Office for National Statistics,13-Apr-17,Contractors,Portfolio Design,Parity Resources Limited,24851," 1,918.62 ", Information Management Services , Large , Programme ,
UK Statistics Authority,Office for National Statistics,13-Apr-17,Short-Term Contract & Agency Staff - Full Cost,Data Collection,Parity Resources Limited,24851," 3,738.48 ", Information Management Services , Large , Programme ,
UK Statistics Authority,Office for National Statistics,13-Apr-17,Travel & Subsistence,Portfolio Design,Parity Resources Limited,24851, 171.48 , Information Management Services , Large , Programme ,
UK Statistics Authority,Office for National Statistics,18-Apr-17,ICT Outsourcing & Maint./Support,Digital Services Technology and Methodology,QA Ltd,24858," 133,680.00 ", Information Management Services , Large , Programme ,
UK Statistics Authority,Office for National Statistics,18-Apr-17,Consultancy,Census,Ernst & Young Llp,24859," 33,217.50 ", Information Management Services , Large , Programme ,
UK Statistics Authority,Office for National Statistics,18-Apr-17,Other ICT Costs,Digital Services Technology and Methodology,Insight Direct,24860," 55,454.40 ", Information Management Services , Large , Programme ,
UK Statistics Authority,Office for National Statistics,18-Apr-17,ICT Outsourcing & Maint./Support,Digital Services Technology and Methodology,Informatica Software Limited,24870," 32,736.01 ", Information Management Services , SME , Programme ,
UK Statistics Authority,Office for National Statistics,18-Apr-17,Software Pool 4 Year,Finance,Oracle Corporation UK Ltd,24873," 230,271.46 ", Information Management Services , Large , Programme ,
UK Statistics Authority,Office for National Statistics,19-Apr-17,Rent Payable,Property London,Metropolitan Police,25496," 1,010,250.00 ", Drummond Gate Rent , Large , Programme ,
UK Statistics Authority,Office for National Statistics,19-Apr-17,ICT Outsourcing & Maint./Support,Digital Services Technology and Methodology,Valtech Ltd,25510," 79,200.00 ", Information Management Services , Large , Programme ,
UK Statistics Authority,Office for National Statistics,19-Apr-17,ICT Outsourcing & Maint./Support,Digital Services Technology and Methodology,Valtech Ltd,25510," 18,000.00 ", Information Management Services , Large , Programme ,
UK Statistics Authority,Office for National Statistics,19-Apr-17,Legal Expenditure,Corporate Support,Government Legal,30000372," 55,000.00 ", Legal services , Large , Programme ,
UK Statistics Authority,Office for National Statistics,20-Apr-17,Telecoms,Digital Services Technology and Methodology,BTGS T/A BTInet,25848," 30,267.44 ", Information Management Services , Large , Programme ,
UK Statistics Authority,Office for National Statistics,20-Apr-17,Travel & Subsistence,Corporate Support,Redfern Travel,25850," 25,781.04 ", Travel and Accommodation Booking Service , SME , Programme ,
UK Statistics Authority,Office for National Statistics,20-Apr-17,Contractors,Business Services and Development,LA International,25854," 11,393.44 ", Information Management Services , SME , Programme ,
UK Statistics Authority,Office for National Statistics,20-Apr-17,Contractors,Digital Services Technology and Methodology,LA International,25854," 27,897.62 ", Information Management Services , SME , Programme ,
UK Statistics Authority,Office for National Statistics,20-Apr-17,ICT Outsourcing & Maint./Support,Digital Services Technology and Methodology,QA Ltd,25858," 135,660.00 ", Information Management Services , Large , Programme ,
UK Statistics Authority,Office for National Statistics,20-Apr-17,Electricity,Property Newport,EDF Energy,30000375," 29,790.46 ", Newport Electricity Charges  , Large , Programme ,
UK Statistics Authority,Office for National Statistics,20-Apr-17,Electricity,Property Titchfield,EDF Energy,30000376," 25,937.60 ", Titchfield Electricity Charges  , Large , Programme ,
UK Statistics Authority,Office for National Statistics,20-Apr-17,Electricity,Property London,EDF Energy,30000377," 28,916.07 ", Drummond Gate Electricity Charges  , Large , Programme ,
UK Statistics Authority,Office for National Statistics,21-Apr-17,Non IT Contractual Payments,Data Collection,NISRA,25938," 94,957.07 ", Statistical Services , Large , Programme ,
UK Statistics Authority,Office for National Statistics,21-Apr-17,ICT Outsourcing & Maint./Support,Digital Services Technology and Methodology,QA Ltd,25941," 63,840.00 ", Information Management Services , Large , Programme ,
UK Statistics Authority,Office for National Statistics,24-Apr-17,Capitalised Agency Staff Costs,Digital Services Technology and Methodology,Parity Resources Limited,26123," 18,000.00 ", Information Management Services , Large , Programme ,
UK Statistics Authority,Office for National Statistics,24-Apr-17,Contractors,Organisational Development,Parity Resources Limited,26123," 3,517.50 ", Information Management Services , Large , Programme ,
UK Statistics Authority,Office for National Statistics,24-Apr-17,Short-Term Contract & Agency Staff - Full Cost,Business Services and Development,Parity Resources Limited,26123, 696.19 , Information Management Services , Large , Programme ,
UK Statistics Authority,Office for National Statistics,24-Apr-17,Short-Term Contract & Agency Staff - Full Cost,Census,Parity Resources Limited,26123," 1,002.92 ", Information Management Services , Large , Programme ,
UK Statistics Authority,Office for National Statistics,24-Apr-17,Short-Term Contract & Agency Staff - Full Cost,Census,Parity Resources Limited,26123, 951.49 , Information Management Services , Large , Programme ,
UK Statistics Authority,Office for National Statistics,24-Apr-17,Short-Term Contract & Agency Staff - Full Cost,Data Collection,Parity Resources Limited,26123," 3,996.78 ", Information Management Services , Large , Programme ,
UK Statistics Authority,Office for National Statistics,24-Apr-17,Short-Term Contract & Agency Staff - Full Cost,Data Collection,Parity Resources Limited,26123, 696.19 , Information Management Services , Large , Programme ,
UK Statistics Authority,Office for National Statistics,24-Apr-17,Short-Term Contract & Agency Staff - Full Cost,Data Collection,Parity Resources Limited,26123," 2,849.33 ", Information Management Services , Large , Programme ,
UK Statistics Authority,Office for National Statistics,24-Apr-17,Short-Term Contract & Agency Staff - Full Cost,Data Collection Support Services,Parity Resources Limited,26123," 1,116.84 ", Information Management Services , Large , Programme ,
UK Statistics Authority,Office for National Statistics,24-Apr-17,ICT Outsourcing & Maint./Support,Digital Services Technology and Methodology,Equal Experts UK Ltd,26125," 144,000.00 ", Information Management Services , Large , Programme ,
UK Statistics Authority,Office for National Statistics,24-Apr-17,ICT Outsourcing & Maint./Support,Digital Services Technology and Methodology,Equal Experts UK Ltd,26125," 252,000.00 ", Information Management Services , Large , Programme ,
UK Statistics Authority,Office for National Statistics,24-Apr-17,Contractors,Digital Services Technology and Methodology,E Synergy Solutions,26131," 26,400.00 ", Information Management Services , SME , Programme ,
UK Statistics Authority,Office for National Statistics,24-Apr-17,Other ICT Costs,Digital Services Technology and Methodology,CDW Limited,26138," 29,984.69 ", Information Management Services , Large , Programme ,
UK Statistics Authority,Office for National Statistics,25-Apr-17,Non IT Contractual Payments,Social and Analysis,Mastadon C Ltd,26355," 39,041.09 ", Statistical Services , SME , Programme ,
UK Statistics Authority,Office for National Statistics,25-Apr-17,FM Contract Payments,Corporate Support,Vinci Construction UK Limited,26360," 69,715.26 ", Facilities Management , Large , Programme ,
UK Statistics Authority,Office for National Statistics,25-Apr-17,Contractors,Business Services and Development,Sopra Steria,26363," 10,780.56 ", Information Management Services , Large , Programme ,
UK Statistics Authority,Office for National Statistics,25-Apr-17,Contractors,Census,Sopra Steria,26363," 11,379.48 ", Information Management Services , Large , Programme ,
UK Statistics Authority,Office for National Statistics,25-Apr-17,Contractors,Digital Services Technology and Methodology,Sopra Steria,26363," 15,101.12 ", Information Management Services , Large , Programme ,
UK Statistics Authority,Office for National Statistics,25-Apr-17,Travel & Subsistence,Census,Sopra Steria,26363, 120.72 , Information Management Services , Large , Programme ,
UK Statistics Authority,Office for National Statistics,26-Apr-17,FM Contract Payments,Corporate Support,Vinci Construction UK Limited,26371," 36,098.91 ", Facilities Management , Large , Programme ,
UK Statistics Authority,Office for National Statistics,26-Apr-17,ICT Outsourcing & Maint./Support,Digital Services Technology and Methodology,Esri (UK) Ltd,26373," 216,000.00 ", Right to Use Licenses , SME , Programme ,
UK Statistics Authority,Office for National Statistics,26-Apr-17,Travel & Subsistence,Corporate Support,Redfern Travel,26381," 40,844.27 ", Travel and Accommodation Booking Service , SME , Programme ,
UK Statistics Authority,Office for National Statistics,26-Apr-17,Marketing & Media,Data Collection Support Services,Williams Lea Tag,26384," 189,217.34 ", Census Print and Post Support , Large , Programme ,
UK Statistics Authority,Office for National Statistics,26-Apr-17,Non IT Contractual Payments,Census,Brook Street (UK) Limited,26387," 132,333.60 ", Census RTP Services , SME , Programme ,
Grand Total,,,,,,,,,,
